fUST/lending_fUST_20241225
["ID","MTS","AMOUNT","RATE_DAILY","PERIOD"]
[346550210,1735075848002,-1671.36,0.00014246,2]
[346550211,1735075848011,-500.0,0.00014246,2]
[346550212,1735075848020,-500.0,0.00014246,2]
[346550213,1735075848029,-1499.25,0.00014246,2]
[346550214,1735075848039,-1476.06,0.00014246,2]
[346550215,1735075848056,-1447.92,0.00014246,2]
[346550216,1735075848066,-500.0,0.00014246,2]
[346550217,1735075848076,-2560.67,0.00014246,2]
[346550218,1735075848085,-500.0,0.00014246,2]
[346550219,1735075848095,-542.4615973,0.00014246,2]
[346550220,1735075848105,-805.62,0.00014246,2]
[346550221,1735075848115,-2500.5,0.00014246,2]
[346550222,1735075848124,-2338.34,0.00014246,2]
[346550223,1735075848134,-500.0,0.00014246,2]
[346550224,1735075848144,-500.0,0.00014246,2]
[346550225,1735075848154,-1403.87,0.00014246,2]
[346550226,1735075848164,-1154.35,0.00014246,2]
[346550227,1735075848174,-1398.01,0.00014246,2]
[346550228,1735075848183,-1182.05,0.00014246,2]
[346550229,1735075848194,-549.4,0.00014246,2]
[346550230,1735075848203,-500.0,0.00014246,2]
[346550231,1735075848213,-500.0,0.00014246,2]
[346550232,1735075848223,-1831.32,0.00014246,2]
[346550233,1735075848232,-25047.75,0.00014246,2]
[346550234,1735075848241,-593.47,0.00014246,2]
[346550235,1735075848251,-679.12,0.00014246,2]
[346550236,1735075848261,-1454.86,0.00014246,2]
[346550237,1735075848270,-1481.27,0.00014246,2]
[346550238,1735075848280,-1947.36,0.00014246,2]
[346550239,1735075848289,-3387.14,0.00014246,2]
[346550240,1735075848299,-552.66,0.00014246,2]
[346550241,1735075848308,-500.0,0.00014246,2]
[346550242,1735075848318,-500.0,0.00014246,2]
[346550243,1735075848327,-5997.35,0.00014246,2]
[346550244,1735075848338,-803.16,0.00014246,2]
[346550245,1735075848347,-2564.65,0.00014246,2]
[346550246,1735075848356,-1891.04,0.00014246,2]
[346550247,1735075848366,-500.0,0.00014246,2]
[346550248,1735075848376,-9648.21,0.00014246,2]
[346550249,1735075848385,-151.0,0.00014246,2]
[346550250,1735075848395,-151.0,0.00014246,2]
[346550251,1735075848405,-500.0,0.00014246,2]
[346550252,1735075848414,-1626.42,0.00014246,2]
[346550253,1735075848423,-151.0,0.00014246,2]
[346550254,1735075848432,-151.0,0.00014246,2]
[346550255,1735075848442,-500.0,0.00014246,2]
[346550256,1735075848452,-1561.61,0.00014246,2]
[346550257,1735075848461,-1073.99,0.00014246,2]
[346550258,1735075848471,-500.0,0.00014246,2]
[346550259,1735075848481,-500.0,0.00014246,2]
[346550260,1735075848491,-500.0,0.00014246,2]
[346550261,1735075848501,-564.1,0.00014246,2]
[346550262,1735075848511,-1113.94,0.00014246,2]
[346550263,1735075848521,-615.0,0.00014246,2]
[346550264,1735075848530,-1864.52,0.00014246,2]
[346550265,1735075848539,-618.07,0.00014246,2]
[346550266,1735075848548,-500.0,0.00014246,2]
[346550267,1735075848557,-500.0,0.00014246,2]
[346550268,1735075848567,-840.13,0.00014246,2]
[346550269,1735075848576,-2647.03,0.00014246,2]
[346550270,1735075848586,-500.0,0.00014246,2]
[346550271,1735075848595,-778.45,0.00014246,2]
[346550272,1735075848605,-3488.38,0.00014246,2]
[346550273,1735075848614,-1481.88,0.00014246,2]
[346550274,1735075848623,-1924.69,0.00014246,2]
[346550275,1735075848632,-500.0,0.00014246,2]
[346550276,1735075848643,-543.88,0.00014246,2]
[346550277,1735075848652,-3821.09,0.00014246,2]
[346550278,1735075848661,-1576.06,0.00014246,2]
[346550279,1735075848671,-715.89,0.00014246,2]
[346550280,1735075848680,-874.77,0.00014246,2]
[346550281,1735075848689,-3860.86,0.00014246,2]
[346550282,1735075848699,-721.58,0.00014246,2]
[346550283,1735075848708,-20850.78,0.00014246,2]
[346550284,1735075848717,-1237.05,0.00014246,2]
[346550285,1735075848727,-6601.91,0.00014246,2]
[346550286,1735075848736,-702.48,0.00014246,2]
[346550287,1735075848745,-3071.68,0.00014246,2]
[346550288,1735075848756,-16539.57,0.00014246,2]
[346550289,1735075848765,-500.0,0.00014246,2]
[346550290,1735075848774,-79539.66,0.00014246,2]
[346550291,1735075848783,-3730.99,0.00014246,2]
[346550292,1735075848793,-1264.55,0.00014246,2]
[346550293,1735075848801,-1836.12,0.00014246,2]
[346550294,1735075848811,-500.0,0.00014246,2]
[346550295,1735075848820,-500.0,0.00014246,2]
[346550296,1735075848829,-9345.64,0.00014246,2]
[346550297,1735075848838,-500.0,0.00014246,2]
[346550298,1735075848847,-2939.12,0.00014246,2]
[346550299,1735075848856,-235.7922574,0.00014374,2]
[346550300,1735075848865,-195.01,0.00014383,2]
[346550301,1735075848875,-2826.84082401,0.0001442,2]
[346550302,1735075848884,-349.01757869,0.00014519,2]
[346550303,1735075848893,-160.0,0.00014519,2]
[346550304,1735075848903,-500.0,0.0001452,2]
[346550305,1735075848912,-500.0,0.0001452,2]
[346550306,1735075848921,-819.01,0.0001452,2]
[346550307,1735075848930,-885.0,0.0001452,2]
[346550308,1735075848941,-799.55,0.0001452,2]
[346550309,1735075848951,-500.0,0.0001452,2]
[346550310,1735075848960,-500.0,0.0001452,2]
[346550311,1735075848969,-1097.64,0.0001452,2]
[346550312,1735075848978,-500.0,0.0001452,2]
[346550313,1735075848988,-907.02,0.0001452,2]
[346550314,1735075848998,-1386.11,0.0001452,2]
[346550315,1735075849007,-640.74,0.0001452,2]
[346550316,1735075849017,-263.14454872,0.0001452,2]
[346550317,1735075849168,-516.15,0.0001452,2]
[346550318,1735075849178,-1443.64,0.0001452,2]
[346550319,1735075849187,-1471.15,0.0001452,2]
[346550320,1735075849198,-500.0,0.0001452,2]
[346550321,1735075849208,-615.58,0.0001452,2]
[346550322,1735075849217,-741.85,0.0001452,2]
[346550323,1735075849227,-500.0,0.0001452,2]
[346550324,1735075849236,-505.01,0.0001452,2]
[346550325,1735075849246,-500.0,0.0001452,2]
[346550326,1735075849255,-1611.43,0.0001452,2]
[346550327,1735075849265,-500.0,0.0001452,2]
[346550328,1735075849275,-500.0,0.0001452,2]
[346550329,1735075849284,-728.85,0.0001452,2]
[346550330,1735075849294,-2848.73,0.0001452,2]
[346550331,1735075849304,-515.19,0.0001452,2]
[346550332,1735075849314,-732.32,0.0001452,2]
[346550333,1735075849323,-2936.79,0.0001452,2]
[346550334,1735075849333,-603.19,0.0001452,2]
[346550335,1735075849343,-1078.69,0.0001452,2]
[346550336,1735075849353,-928.02,0.0001452,2]
[346550337,1735075849362,-1439.99,0.0001452,2]
[346550338,1735075849372,-500.0,0.0001452,2]
[346550339,1735075849382,-500.0,0.0001452,2]
[346550340,1735075849393,-640.39,0.0001452,2]
[346550341,1735075849402,-500.0,0.0001452,2]
[346550342,1735075849412,-500.0,0.0001452,2]
[346550343,1735075849421,-500.0,0.0001452,2]
[346550344,1735075849431,-500.0,0.0001452,2]
[346550345,1735075849441,-500.0,0.0001452,2]
[346550346,1735075849450,-500.0,0.0001452,2]
[346550347,1735075849460,-500.0,0.0001452,2]
[346550348,1735075849470,-500.0,0.0001452,2]
[346550349,1735075849481,-1691.35,0.0001452,2]
[346550350,1735075849491,-1077.23,0.0001452,4]
[346550351,1735075849500,-1060.06,0.0001452,2]
[346550352,1735075849510,-1303.19,0.0001452,2]
[346550353,1735075849519,-500.0,0.0001452,2]
[346550354,1735075849529,-1992.46,0.0001452,2]
[346550355,1735075849538,-276.14,0.0001452,2]
[346550356,1735075849547,-500.0,0.0001452,2]
[346550357,1735075849557,-500.0,0.0001452,2]
[346550358,1735075849566,-698.06,0.0001452,2]
[346550359,1735075849575,-966.2,0.0001452,2]
[346550360,1735075849585,-3323.28,0.0001452,2]
[346550361,1735075849594,-500.0,0.0001452,2]
[346550362,1735075849603,-651.7,0.0001452,2]
[346550363,1735075849612,-928.78,0.0001452,2]
[346550364,1735075849622,-500.0,0.0001452,2]
[346550365,1735075849631,-626.26,0.0001452,2]
[346550366,1735075849640,-500.0,0.0001452,2]
[346550367,1735075849649,-500.0,0.0001452,2]
[346550368,1735075849658,-2120.6,0.0001452,2]
[346550369,1735075849667,-213.23692095,0.0001452,2]
[346550370,1735075849694,-500.0,0.00013972,2]
[346550371,1735075849704,-286.76307905,0.0001452,2]
[346550372,1735075849713,-988.69,0.0001452,2]
[346550373,1735075849723,-1116.74,0.0001452,2]
[346550374,1735075849733,-500.0,0.0001452,2]
[346550375,1735075849742,-1409.72,0.0001452,2]
[346550376,1735075849751,-437.99078571,0.0001452,2]
[346550377,1735075849763,-2100.60921429,0.0001452,2]
[346550378,1735075849772,-99.39078571,0.0001452,2]
[346550379,1735075849783,-751.57921429,0.0001452,2]
[346550380,1735075849793,-1716.38078571,0.0001452,2]
[346550381,1735075850282,-150.0,0.00013765,2]
[346550382,1735075850292,-152.0,0.00013838,2]
[346550383,1735075850302,-153.0,0.0001407,2]
[346550384,1735075850312,-549.99,0.00014246,2]
[346550385,1735075850322,-500.0,0.00014246,2]
[346550386,1735075850331,-1827.45921429,0.0001452,2]
[346550387,1735075850342,-1784.59,0.0001452,2]
[346550388,1735075850353,-500.0,0.0001452,2]
[346550389,1735075850363,-500.0,0.0001452,2]
[346550390,1735075850372,-500.0,0.0001452,2]
[346550391,1735075850382,-578.12,0.0001452,2]
[346550392,1735075850392,-1169.85,0.0001452,2]
[346550393,1735075850402,-500.0,0.0001452,2]
[346550394,1735075850412,-745.38,0.0001452,2]
[346550395,1735075850422,-1173.75,0.0001452,2]
[346550396,1735075850432,-1422.09,0.0001452,2]
[346550397,1735075850442,-791.72,0.0001452,2]
[346550398,1735075850451,-500.0,0.0001452,2]
[346550399,1735075850461,-762.39,0.0001452,2]
[346550400,1735075850471,-2662.84,0.0001452,2]
[346550401,1735075850485,-1671.36,0.0001452,2]
[346550402,1735075850495,-405.78833295,0.0001452,2]
[346550403,1735075850504,-500.0,0.0001452,2]
[346550404,1735075850515,-1499.25,0.0001452,2]
[346550405,1735075850525,-1476.06,0.0001452,2]
[346550406,1735075850535,-1447.92,0.0001452,2]
[346550407,1735075850544,-500.0,0.0001452,2]
[346550408,1735075850556,-2560.67,0.0001452,2]
[346550409,1735075850566,-187.14908748,0.0001452,2]
[346550410,1735075850576,-805.62,0.0001452,2]
[346550411,1735075850585,-2500.5,0.0001452,2]
[346550412,1735075850595,-2338.34,0.0001452,2]
[346550413,1735075850605,-500.0,0.0001452,2]
[346550414,1735075850615,-500.0,0.0001452,2]
[346550415,1735075850625,-1403.87,0.0001452,2]
[346550416,1735075850634,-1154.35,0.0001452,2]
[346550417,1735075850643,-1398.01,0.0001452,2]
[346550418,1735075850653,-1182.05,0.0001452,2]
[346550419,1735075850663,-549.4,0.0001452,2]
[346550420,1735075850672,-500.0,0.0001452,2]
[346550421,1735075850683,-500.0,0.0001452,2]
[346550422,1735075850692,-1831.32,0.0001452,2]
[346550423,1735075850702,-25047.75,0.0001452,2]
[346550424,1735075850711,-593.47,0.0001452,2]
[346550425,1735075850721,-679.12,0.0001452,2]
[346550426,1735075850731,-1454.86,0.0001452,2]
[346550427,1735075850741,-1481.27,0.0001452,2]
[346550428,1735075850751,-1947.36,0.0001452,2]
[346550429,1735075850761,-3387.14,0.0001452,2]
[346550430,1735075850771,-552.66,0.0001452,2]
[346550431,1735075850780,-500.0,0.0001452,2]
[346550432,1735075850791,-500.0,0.0001452,2]
[346550433,1735075850800,-5997.35,0.0001452,2]
[346550434,1735075850810,-803.16,0.0001452,2]
[346550435,1735075850819,-2564.65,0.0001452,2]
[346550436,1735075850829,-1891.04,0.0001452,2]
[346550437,1735075850838,-500.0,0.0001452,2]
[346550438,1735075850847,-9648.21,0.0001452,2]
[346550439,1735075850857,-151.0,0.0001452,2]
[346550440,1735075850867,-500.0,0.0001452,2]
[346550441,1735075850876,-1626.42,0.0001452,2]
[346550442,1735075850886,-500.0,0.0001452,2]
[346550443,1735075850895,-1561.61,0.0001452,2]
[346550444,1735075850906,-500.0,0.0001452,2]
[346550445,1735075850915,-500.0,0.0001452,2]
[346550446,1735075850926,-500.0,0.0001452,2]
[346550447,1735075850935,-564.1,0.0001452,2]
[346550448,1735075850945,-1113.94,0.0001452,2]
[346550449,1735075850955,-615.0,0.0001452,2]
[346550450,1735075850964,-1864.52,0.0001452,2]
[346550451,1735075850973,-618.07,0.0001452,2]
[346550452,1735075850983,-500.0,0.0001452,2]
[346550453,1735075850993,-500.0,0.0001452,2]
[346550454,1735075851002,-840.13,0.0001452,2]
[346550455,1735075851012,-2647.03,0.0001452,2]
[346550456,1735075851024,-500.0,0.0001452,2]
[346550457,1735075851034,-778.45,0.0001452,2]
[346550458,1735075851044,-3488.38,0.0001452,2]
[346550459,1735075851053,-1481.88,0.0001452,2]
[346550460,1735075851064,-1924.69,0.0001452,2]
[346550461,1735075851074,-500.0,0.0001452,2]
[346550462,1735075851084,-543.88,0.0001452,2]
[346550463,1735075851093,-3821.09,0.0001452,2]
[346550464,1735075851102,-1576.06,0.0001452,2]
[346550465,1735075851112,-715.89,0.0001452,2]
[346550466,1735075851122,-874.77,0.0001452,2]
[346550467,1735075851132,-3860.86,0.0001452,2]
[346550468,1735075851142,-721.58,0.0001452,2]
[346550469,1735075851152,-20850.78,0.0001452,2]
[346550470,1735075851162,-1237.05,0.0001452,2]
[346550471,1735075851171,-6601.91,0.0001452,2]
[346550472,1735075851181,-702.48,0.0001452,2]
[346550473,1735075851190,-3071.68,0.0001452,2]
[346550474,1735075851202,-16539.57,0.0001452,2]
[346550475,1735075851212,-500.0,0.0001452,2]
[346550476,1735075851222,-79539.66,0.0001452,2]
[346550477,1735075851232,-3730.99,0.0001452,2]
[346550478,1735075851241,-1264.55,0.0001452,2]
[346550479,1735075851251,-1836.12,0.0001452,2]
[346550480,1735075851261,-500.0,0.0001452,2]
[346550481,1735075851271,-500.0,0.0001452,2]
[346550482,1735075851280,-9345.64,0.0001452,2]
[346550483,1735075851290,-376.69601759,0.0001452,2]
[346550484,1735075851300,-2939.12,0.0001452,2]
[346550485,1735075851309,-549.99,0.0001452,2]
[346550486,1735075851319,-500.0,0.0001452,2]
[346550487,1735075851330,-166.94727028,0.00014532,2]
[346550488,1735075851341,-500.0,0.00014532,2]
[346550489,1735075851351,-1000.0,0.00014677,2]
[346550490,1735075851360,-160.0,0.00014793,2]
[346550491,1735075851370,-819.01,0.00014794,2]
[346550492,1735075851379,-885.0,0.00014794,2]
[346550493,1735075851388,-799.55,0.00014794,2]
[346550494,1735075851398,-500.0,0.00014794,2]
[346550495,1735075851407,-500.0,0.00014794,2]
[346550496,1735075851416,-1097.64,0.00014794,2]
[346550497,1735075851426,-500.0,0.00014794,2]
[346550498,1735075851435,-907.02,0.00014794,2]
[346550499,1735075851444,-1386.11,0.00014794,2]
[346550500,1735075851454,-640.74,0.00014794,2]
[346550501,1735075851464,-516.15,0.00014794,2]
[346550502,1735075851473,-1443.64,0.00014794,2]
[346550503,1735075851485,-1471.15,0.00014794,2]
[346550504,1735075851495,-500.0,0.00014794,2]
[346550505,1735075851504,-615.58,0.00014794,2]
[346550506,1735075851514,-741.85,0.00014794,2]
[346550507,1735075851523,-500.0,0.00014794,2]
[346550508,1735075851532,-505.01,0.00014794,2]
[346550509,1735075851542,-500.0,0.00014794,2]
[346550510,1735075851551,-1611.43,0.00014794,2]
[346550511,1735075851561,-500.0,0.00014794,2]
[346550512,1735075851571,-444.89747907,0.00014794,2]
[346550513,1735075851580,-728.85,0.00014794,2]
[346550514,1735075851590,-2848.73,0.00014794,2]
[346550515,1735075851599,-515.19,0.00014794,2]
[346550516,1735075851609,-732.32,0.00014794,2]
[346550517,1735075851619,-2936.79,0.00014794,2]
[346550518,1735075851628,-603.19,0.00014794,2]
[346550519,1735075851638,-1078.69,0.00014794,2]
[346550520,1735075851648,-928.02,0.00014794,2]
[346550521,1735075851658,-1439.99,0.00014794,2]
[346550522,1735075851667,-500.0,0.00014794,2]
[346550523,1735075851676,-500.0,0.00014794,2]
[346550524,1735075851686,-640.39,0.00014794,2]
[346550525,1735075851695,-500.0,0.00014794,2]
[346550526,1735075851704,-500.0,0.00014794,2]
[346550527,1735075851714,-500.0,0.00014794,2]
[346550528,1735075851723,-500.0,0.00014794,2]
[346550529,1735075851733,-500.0,0.00014794,2]
[346550530,1735075851742,-489.20286545,0.00014794,2]
[346550531,1735075851751,-500.0,0.00014794,2]
[346550532,1735075851761,-500.0,0.00014794,2]
[346550533,1735075851770,-1691.35,0.00014794,2]
[346550534,1735075851779,-1077.23,0.00014794,4]
[346550535,1735075851789,-178.0087287,0.00014794,2]
[346550536,1735075851798,-1060.06,0.00014794,2]
[346550537,1735075851808,-1303.19,0.00014794,2]
[346550538,1735075851817,-500.0,0.00014794,2]
[346550539,1735075851827,-1992.46,0.00014794,2]
[346550540,1735075851836,-276.14,0.00014794,2]
[346550541,1735075851846,-500.0,0.00014794,2]
[346550542,1735075851855,-500.0,0.00014794,2]
[346550543,1735075851865,-698.06,0.00014794,2]
[346550544,1735075851874,-966.2,0.00014794,2]
[346550545,1735075851884,-3323.28,0.00014794,2]
[346550546,1735075851893,-500.0,0.00014794,2]
[346550547,1735075851903,-651.7,0.00014794,2]
[346550548,1735075851912,-928.78,0.00014794,2]
[346550549,1735075851921,-500.0,0.00014794,2]
[346550550,1735075851931,-626.26,0.00014794,2]
[346550551,1735075851941,-500.0,0.00014794,2]
[346550552,1735075851951,-500.0,0.00014794,2]
[346550553,1735075851960,-2120.6,0.00014794,2]
[346550554,1735075851970,-500.0,0.00014794,2]
[346550555,1735075851979,-988.69,0.00014794,2]
[346550556,1735075851988,-1116.74,0.00014794,2]
[346550557,1735075851998,-500.0,0.00014794,2]
[346550558,1735075852007,-1409.72,0.00014794,2]
[346550559,1735075852016,-850.97,0.00014794,2]
[346550560,1735075852026,-3543.84,0.00014794,2]
[346550561,1735075852035,-1784.59,0.00014794,2]
[346550562,1735075852044,-500.0,0.00014794,2]
[346550563,1735075852054,-500.0,0.00014794,2]
[346550564,1735075852064,-286.20304885,0.00014794,2]
[346550565,1735075852073,-578.12,0.00014794,2]
[346550566,1735075852083,-1169.85,0.00014794,2]
[346550567,1735075852093,-500.0,0.00014794,2]
[346550568,1735075852102,-745.38,0.00014794,2]
[346550569,1735075852112,-1173.75,0.00014794,2]
[346550570,1735075852278,-1422.09,0.00014794,2]
[346550571,1735075852289,-791.72,0.00014794,2]
[346550572,1735075852299,-500.0,0.00014794,2]
[346550573,1735075852309,-762.39,0.00014794,2]
[346550574,1735075852318,-2662.84,0.00014794,2]
[346550575,1735075852327,-1671.36,0.00014794,2]
[346550576,1735075852337,-500.0,0.00014794,2]
[346550577,1735075852346,-1499.25,0.00014794,2]
[346550578,1735075852356,-1476.06,0.00014794,2]
[346550579,1735075852365,-1447.92,0.00014794,2]
[346550580,1735075852375,-500.0,0.00014794,2]
[346550581,1735075852384,-2560.67,0.00014794,2]
[346550582,1735075852394,-805.62,0.00014794,2]
[346550583,1735075852403,-500.0,0.00014794,2]
[346550584,1735075852412,-2500.5,0.00014794,2]
[346550585,1735075852422,-2338.34,0.00014794,2]
[346550586,1735075852432,-500.0,0.00014794,2]
[346550587,1735075852441,-500.0,0.00014794,2]
[346550588,1735075852451,-1403.87,0.00014794,2]
[346550589,1735075852460,-1154.35,0.00014794,2]
[346550590,1735075852469,-1398.01,0.00014794,2]
[346550591,1735075852480,-1182.05,0.00014794,2]
[346550592,1735075852491,-549.4,0.00014794,2]
[346550593,1735075852500,-500.0,0.00014794,2]
[346550594,1735075852509,-170.32700711,0.00014794,2]
[346550595,1735075852519,-1831.32,0.00014794,2]
[346550596,1735075852529,-25047.75,0.00014794,2]
[346550597,1735075852538,-593.47,0.00014794,2]
[346550598,1735075852547,-679.12,0.00014794,2]
[346550599,1735075852557,-1454.86,0.00014794,2]
[346550600,1735075852566,-1481.27,0.00014794,2]
[346550601,1735075852575,-1947.36,0.00014794,2]
[346550602,1735075852584,-3387.14,0.00014794,2]
[346550603,1735075852594,-552.66,0.00014794,2]
[346550604,1735075852603,-500.0,0.00014794,2]
[346550605,1735075852612,-500.0,0.00014794,2]
[346550606,1735075852622,-5997.35,0.00014794,2]
[346550607,1735075852631,-803.16,0.00014794,2]
[346550608,1735075852640,-2564.65,0.00014794,2]
[346550609,1735075852649,-1891.04,0.00014794,2]
[346550610,1735075852658,-500.0,0.00014794,2]
[346550611,1735075852668,-9648.21,0.00014794,2]
[346550612,1735075852677,-151.0,0.00014794,2]
[346550613,1735075852686,-151.0,0.00014794,2]
[346550614,1735075852695,-500.0,0.00014794,2]
[346550615,1735075852704,-1626.42,0.00014794,2]
[346550616,1735075852713,-500.0,0.00014794,2]
[346550617,1735075852722,-1561.61,0.00014794,2]
[346550618,1735075852731,-500.0,0.00014794,2]
[346550619,1735075852741,-216.08731582,0.00014794,2]
[346550620,1735075852751,-500.0,0.00014794,2]
[346550621,1735075852760,-564.1,0.00014794,2]
[346550622,1735075852769,-1113.94,0.00014794,2]
[346550623,1735075852778,-615.0,0.00014794,2]
[346550624,1735075852787,-1864.52,0.00014794,2]
[346550625,1735075852797,-618.07,0.00014794,2]
[346550626,1735075852806,-500.0,0.00014794,2]
[346550627,1735075852815,-500.0,0.00014794,2]
[346550628,1735075852824,-840.13,0.00014794,2]
[346550629,1735075852833,-2647.03,0.00014794,2]
[346550630,1735075852842,-500.0,0.00014794,2]
[346550631,1735075852852,-778.45,0.00014794,2]
[346550632,1735075852861,-3488.38,0.00014794,2]
[346550633,1735075852870,-1481.88,0.00014794,2]
[346550634,1735075852879,-1924.69,0.00014794,2]
[346550635,1735075852888,-500.0,0.00014794,2]
[346550636,1735075852898,-543.88,0.00014794,2]
[346550637,1735075852907,-3821.09,0.00014794,2]
[346550638,1735075852917,-1576.06,0.00014794,2]
[346550639,1735075852926,-715.89,0.00014794,2]
[346550640,1735075852935,-874.77,0.00014794,2]
[346550641,1735075852944,-3860.86,0.00014794,2]
[346550642,1735075852954,-721.58,0.00014794,2]
[346550643,1735075852963,-20850.78,0.00014794,2]
[346550644,1735075852972,-1237.05,0.00014794,2]
[346550645,1735075852981,-6601.91,0.00014794,2]
[346550646,1735075852991,-702.48,0.00014794,2]
[346550647,1735075853000,-3071.68,0.00014794,2]
[346550648,1735075853009,-16539.57,0.00014794,2]
[346550649,1735075853024,-500.0,0.00014794,2]
[346550650,1735075853033,-79539.66,0.00014794,2]
[346550651,1735075853042,-3730.99,0.00014794,2]
[346550652,1735075853052,-1264.55,0.00014794,2]
[346550653,1735075853061,-1836.12,0.00014794,2]
[346550654,1735075853070,-500.0,0.00014794,2]
[346550655,1735075853079,-500.0,0.00014794,2]
[346550656,1735075853088,-9345.64,0.00014794,2]
[346550657,1735075853098,-2939.12,0.00014794,2]
[346550658,1735075853107,-549.99,0.00014794,2]
[346550659,1735075853117,-631.55961352,0.00014794,2]
[346550660,1735075853126,-232.54378331,0.0001484,2]
[346550661,1735075853135,-162920.10201276,0.0001484,10]
[346550662,1735075853151,-7023.55,0.0001484,10]
[346550663,1735075853172,-426.554,0.0001484,10]
[346550664,1735075853183,-549.742494,0.0001484,10]
[346550665,1735075853195,-1081.97833632,0.0001484,10]
[346550666,1735075853207,-871.59682,0.0001484,10]
[346550671,1735076937775,500.0,0.00023,120]
[346550672,1735076968735,600.0,0.0001274,2]
[346550673,1735076982311,500.0,0.00023,120]
[346550674,1735076984974,2055.8620641,0.00013,5]
[346550675,1735076989722,492.332689,0.00023,120]
[346550736,1735077038328,-300.0,0.00012999,2]
[346550738,1735077038337,-300.0,0.00012999,2]
[346550740,1735077038346,-2257.59034575,0.00013,2]
[346550742,1735077038358,-8635.72793536,0.00013,2]
[346550744,1735077038367,-822.32383552,0.00013597,2]
[346550746,1735077038377,-2533.54925733,0.00013598,2]
[346550748,1735077038386,-2533.54925732,0.00013667,2]
[346550750,1735077038395,-500.77898859,0.00013673,2]
[346550752,1735077038404,-500.0,0.00013673,2]
[346550754,1735077038414,-500.0,0.00013673,2]
[346550756,1735077038423,-196.12589463,0.00013673,2]
[346550758,1735077038433,-500.0,0.00013673,2]
[346550760,1735077038442,-500.0,0.00013673,2]
[346550762,1735077038451,-500.0,0.00013673,2]
[346550764,1735077038460,-500.0,0.00013673,2]
[346550766,1735077038469,-500.0,0.00013673,2]
[346550768,1735077038478,-159.32393815,0.00013697,2]
[346550770,1735077038487,-500.0,0.00013697,2]
[346550772,1735077038496,-500.0,0.00013697,2]
[346550774,1735077038506,-500.0,0.00013697,2]
[346550776,1735077038515,-500.0,0.00013697,2]
[346550778,1735077038525,-316.18934688,0.00013697,2]
[346550780,1735077038536,-183.81065312,0.00013697,2]
[346550782,1735077038546,-500.0,0.00013697,2]
[346550784,1735077038555,-500.0,0.00013697,2]
[346550786,1735077038564,-500.0,0.00013697,2]
[346550788,1735077038573,-500.0,0.00013697,2]
[346550790,1735077038582,-500.0,0.00013697,2]
[346550793,1735077038592,-300.0,0.00013697,2]
[346550795,1735077038601,-500.0,0.00013697,2]
[346550796,1735077038610,-500.0,0.00013697,2]
[346550798,1735077038620,-200.0,0.00013697,2]
[346550800,1735077038629,-500.0,0.00013697,2]
[346550803,1735077038638,-650.0,0.00013697,2]
[346550805,1735077038647,-500.0,0.00013697,2]
[346550807,1735077038657,-500.0,0.00013697,2]
[346550809,1735077038667,-500.0,0.00013697,2]
[346550811,1735077038676,-500.0,0.00013697,2]